bitfinex/quotes_SOLUSD_20251216
["timestamp","ask_amount","ask_price","bid_price","bid_amount"]
[1765846560193,20.13638614,126.74,126.72,0.1]
[1765846560390,3.58587255,126.73,126.72,0.1]
[1765846560790,11.47666399,126.73,126.72,0.1]
[1765846561807,27.39962774,126.73,126.72,0.1]
[1765846562484,24.52375519,126.73,126.72,0.1]
[1765846562998,21.64788264,126.73,126.72,0.1]
[1765846563295,33.18375519,126.73,126.72,0.1]
[1765846563511,34.80147145,126.73,126.72,0.1]
[1765846565808,20.93788264,126.73,126.72,0.1]
[1765846566013,25.43147145,126.73,126.72,0.1]
[1765846566210,26.13147145,126.73,126.72,0.1]
[1765846566713,21.63788264,126.73,126.71,0.1]
[1765846566896,9.36,126.72,126.63,39.48359353]
[1765846567212,40.66486125,126.73,126.68,7.89374272]
[1765846567395,8.66,126.71,126.68,7.89374272]
[1765846567707,40.66486125,126.73,126.69,0.68]
[1765846567910,53.81845006,126.73,126.69,0.68]
[1765846568214,53.81845006,126.73,126.68,12.38733153]
[1765846568215,4.49358881,126.7,126.67,0.68]
[1765846568714,5.19358881,126.7,126.67,0.68]
[1765846569011,0.7,126.7,126.67,0.68]
[1765846569217,9.36,126.71,126.67,0.68]
[1765846569517,5.19358881,126.7,126.67,0.68]
[1765846569707,8.66,126.71,126.67,0.68]
[1765846569911,13.08624863,126.7,126.67,0.68]
[1765846570613,12.38624863,126.7,126.67,0.68]
[1765846570786,7.89265982,126.7,126.67,0.68]
[1765846571414,8.59265982,126.7,126.67,0.68]
[1765846572098,7.89265982,126.7,126.67,0.68]
[1765846572299,0.7,126.76,126.69,4.49358881]
[1765846572490,8.66,126.75,126.7,5.17358881]
[1765846572686,4.49358881,126.74,126.7,0.68]
[1765846573018,5.19358881,126.74,126.71,0.68]
[1765846573421,12.38438025,126.73,126.71,0.68]
[1765846573787,7.89079144,126.73,126.71,0.68]
[1765846573988,12.38438025,126.73,126.71,0.68]
[1765846574187,21.04438025,126.73,126.71,0.68]
[1765846575209,16.55079144,126.73,126.71,0.68]
[1765846575412,21.04438025,126.73,126.71,0.68]
[1765846575712,5.19358881,126.72,126.68,7.89377609]
[1765846576021,4.49358881,126.71,126.69,0.68]
[1765846577106,4.49358881,126.71,126.68,7.89377609]
[1765846577107,4.49358881,126.7,126.68,0.68]
[1765846577505,12.38687162,126.69,126.68,0.68]
[1765846579218,12.38687162,126.69,126.66,0.68]
[1765846579423,12.38687162,126.69,126.65,7.8955805]
[1765846579424,4.49358881,126.68,126.67,0.68]
[1765846581626,7.89328281,126.69,126.67,0.68]
[1765846582125,4.49358881,126.68,126.67,0.68]
[1765846583039,12.38687162,126.69,126.67,0.68]
[1765846583428,4.49358881,126.69,126.67,0.68]
[1765846584526,16.55294767,126.7,126.67,0.68]
[1765846584725,4.49358881,126.69,126.67,0.68]
[1765846585125,12.38692986,126.69,126.67,0.68]
[1765846586153,7.89334105,126.69,126.67,0.68]
[1765846586356,12.38692986,126.69,126.67,0.68]
[1765846586655,21.0462929,126.7,126.67,8.57445948]
[1765846586956,12.3862929,126.7,126.68,0.68]
[1765846587826,4.49358881,126.69,126.68,0.68]
[1765846589546,4.49358881,126.7,126.68,8.5739059]
[1765846589943,4.49358881,126.7,126.69,0.68]
[1765846593970,4.49358881,126.7,126.68,70.4839059]
[1765846594162,4.49358881,126.69,126.68,62.59]
[1765846595253,7.89277641,126.7,126.68,62.59]
[1765846595431,4.49358881,126.69,126.68,62.59]
[1765846595827,4.49358881,126.69,126.68,0.69]
[1765846596041,4.49358881,126.69,126.66,69.79466894]
[1765846596358,4.49358881,126.69,126.68,0.69]
[1765846597161,7.89277641,126.7,126.68,0.69]
[1765846597654,12.38636522,126.7,126.68,0.69]
[1765846598042,12.38636522,126.7,126.68,0.19]
[1765846599137,4.49358881,126.69,126.66,69.79482129]
[1765846599559,4.49358881,126.69,126.66,61.9]
[1765846599858,4.49358881,126.68,126.66,61.9]
[1765846600057,4.49358881,126.68,126.66,62.22]
[1765846600663,17.21372585,126.69,126.66,62.22]
[1765846600964,4.49358881,126.68,126.66,62.22]
[1765846601369,17.21372585,126.69,126.66,62.22]
[1765846601370,21.04731466,126.69,126.67,0.32]
[1765846602187,21.70731466,126.69,126.66,61.9]
[1765846602369,21.70731466,126.69,126.66,62.22]
[1765846602575,4.49358881,126.67,126.62,61.9]
[1765846602864,4.49358881,126.65,126.63,0.32]
[1765846604271,4.49358881,126.65,126.63,8.21699887]
[1765846604470,4.49358881,126.65,126.63,0.32]
[1765846604877,12.38976963,126.65,126.63,0.32]
[1765846605363,16.5554757,126.66,126.62,69.79722772]
[1765846605573,19.73414771,126.69,126.63,8.21695957]
[1765846605751,16.5539059,126.68,126.63,8.21695957]
[1765846605956,36.94867066,126.68,126.63,8.21695957]
[1765846606257,4.49358881,126.66,126.63,8.21695957]
[1765846606867,4.49358881,126.64,126.62,61.9]
[1765846607045,7.8939059,126.68,126.63,0.32]
[1765846607241,4.49358881,126.67,126.63,8.21687489]
[1765846607464,4.49358881,126.64,126.61,16.55795789]
[1765846607645,4.49358881,126.64,126.61,16.87795789]
[1765846607845,5.15358881,126.64,126.61,8.21795789]
[1765846608671,19.73540241,126.68,126.61,7.89795789]
[1765846608853,28.39540241,126.68,126.62,0.32]
[1765846609055,4.49797532,126.66,126.62,0.32]
[1765846609769,4.49797532,126.65,126.63,7.89702282]
[1765846610192,4.49797532,126.65,126.63,8.21702282]
[1765846611470,4.49797532,126.64,126.63,8.21702282]
[1765846611670,4.49797532,126.64,126.63,0.32]
[1765846613686,4.49797532,126.65,126.63,8.21702282]
[1765846614058,4.49797532,126.64,126.63,8.21702282]
[1765846614557,4.49797532,126.64,126.63,0.32]
[1765846615075,4.49797532,126.64,126.63,62.22]
[1765846615259,7.89525831,126.66,126.63,62.22]
[1765846615465,4.49797532,126.64,126.63,62.22]
[1765846615979,4.49797532,126.65,126.63,62.22]
[1765846616676,4.49797532,126.65,126.64,0.32]
[1765846616872,4.49797532,126.66,126.64,0.32]
[1765846618262,4.49797532,126.66,126.64,8.21631031]
[1765846618973,13.05283307,126.67,126.64,8.21631031]
[1765846619358,4.49797532,126.66,126.63,69.79673242]
[1765846619551,0.66,126.66,126.63,62.22]
[1765846619745,5.15797532,126.66,126.63,70.11696417]
[1765846619967,28.29118047,126.67,126.63,70.11696417]
[1765846620160,12.39341498,126.66,126.63,62.22]
[1765846620374,8.55543966,126.66,126.63,62.22]
[1765846620554,12.39341498,126.66,126.64,0.32]
[1765846620976,12.39341498,126.66,126.64,62.22]
[1765846621786,12.39341498,126.66,126.64,61.9]
[1765846621990,0.66,126.65,126.64,61.9]
[1765846622174,8.55577575,126.65,126.64,61.9]
[1765846622487,0.66,126.65,126.64,61.9]
[1765846623198,12.3934621,126.66,126.64,62.22]
[1765846623488,12.3934621,126.66,126.64,61.9]
[1765846623489,11.46441223,126.66,126.64,61.9]
[1765846623995,0.69,126.66,126.64,61.9]
[1765846624182,8.58483395,126.67,126.64,70.11638406]
[1765846624389,11.4637594,126.67,126.64,70.11638406]
[1765846625790,0.69,126.66,126.64,69.79638406]
[1765846626089,11.4637594,126.67,126.64,70.11638406]
[1765846626471,11.4637594,126.67,126.64,62.22]
[1765846629679,0.69,126.66,126.64,61.9]
[1765846630692,7.89483395,126.67,126.64,61.9]
[1765846630889,11.4637594,126.67,126.64,62.22]
[1765846634085,0.69,126.66,126.64,62.22]
[1765846634405,8.66,126.68,126.64,62.22]
[1765846634406,11.53892545,126.68,126.65,0.32]
[1765846634602,12.22892545,126.68,126.65,0.32]
[1765846634780,3.56892545,126.67,126.64,70.11600291]
[1765846636793,13.0470912,126.7,126.64,70.11600291]
[1765846636794,10.77183101,126.7,126.65,8.98]
[1765846636979,8.58290556,126.7,126.65,11.85892545]
[1765846637177,0.69,126.7,126.66,0.32]
[1765846637796,19.43126765,126.71,126.66,0.32]
[1765846637797,19.43126765,126.71,126.67,7.89452909]
[1765846638002,0.69,126.7,126.67,7.89452909]
[1765846638301,0.69,126.7,126.67,8.21452909]
[1765846639012,3.56892545,126.7,126.67,8.21452909]
[1765846639495,0.69,126.69,126.67,61.9]
[1765846639806,3.56892545,126.69,126.67,61.9]
[1765846640707,3.56892545,126.68,126.67,61.9]
[1765846640996,7.89452909,126.67,126.63,70.11668773]
[1765846641300,2.87892545,126.66,126.63,70.11668773]
[1765846641598,3.56892545,126.66,126.63,70.11668773]
[1765846641798,2.87892545,126.65,126.61,7.89784193]
[1765846642002,2.87892545,126.64,126.61,8.21784193]
[1765846642204,3.56892545,126.64,126.61,8.21784193]
[1765846642504,3.56892545,126.65,126.61,19.74496806]
[1765846642706,3.56892545,126.65,126.62,8.2171339]
[1765846642878,11.46472094,126.65,126.62,8.2171339]
[1765846643301,9.35,126.64,126.57,0.32]
[1765846643480,2.87892545,126.61,126.58,7.89983081]
[1765846643981,3.56892545,126.61,126.58,8.21983081]
[1765846644482,2.87892545,126.6,126.58,8.21983081]
[1765846644897,2.87892545,126.6,126.58,0.32]
[1765846645084,2.87892545,126.6,126.57,8.22056955]
[1765846645281,2.87892545,126.6,126.56,16.56116054]
[1765846645282,2.87892545,126.59,126.56,16.56116054]
[1765846645480,2.87892545,126.59,126.56,8.22116054]
[1765846645702,2.87892545,126.59,126.57,7.9007317]
[1765846646204,2.87892545,126.59,126.56,8.22113656]
[1765846646416,3.56892545,126.59,126.56,8.22113656]
[1765846646702,2.87892545,126.59,126.56,8.22113656]
[1765846647281,8.58902872,126.6,126.56,8.22113656]
[1765846647603,11.46795417,126.6,126.56,8.22113656]
[1765846647808,0.69,126.59,126.56,8.22113656]
[1765846648002,3.56892545,126.59,126.56,8.22113656]
[1765846648203,11.46875359,126.59,126.55,7.90178474]
[1765846648403,2.87892545,126.58,126.55,8.22178474]
[1765846649212,2.87892545,126.58,126.55,0.32]
[1765846649511,0.69,126.58,126.55,11.10092512]
[1765846649712,8.58982814,126.59,126.55,11.10092512]
[1765846649885,0.69,126.59,126.56,8.22109088]
[1765846650213,0.69,126.59,126.56,11.10001633]
[1765846650419,0.69,126.61,126.57,3.19892545]
[1765846650596,0.69,126.61,126.58,2.87892545]
[1765846650784,0.69,126.62,126.58,3.19892545]
[1765846652008,0.69,126.62,126.58,11.09851346]
[1765846653438,8.61725383,126.63,126.59,2.69892545]
[1765846654050,8.61725383,126.63,126.6,7.89889415]
[1765846655607,8.61725383,126.63,126.59,8.21926562]
[1765846655803,0.72,126.62,126.59,8.21926562]
[1765846656632,2.87892545,126.61,126.56,22.95193598]
[1765846657011,0.72,126.6,126.56,72.99998469]
[1765846657329,0.72,126.6,126.56,11.09998469]
[1765846657732,0.72,126.6,126.54,0.1]
[1765846657733,2.87892545,126.57,126.54,0.1]
[1765846657949,7.9001422,126.58,126.54,0.1]
[1765846658153,3.59892545,126.57,126.54,0.1]
[1765846658327,2.87892545,126.56,126.54,0.1]
[1765846658520,12.25892545,126.56,126.54,0.1]
[1765846658740,0.72,126.55,126.54,0.1]
[1765846658943,9.38,126.56,126.54,0.1]
[1765846659551,0.72,126.55,126.54,0.1]
[1765846660368,3.59892545,126.58,126.54,3.29892545]
[1765846660652,0.72,126.57,126.54,2.97892545]
[1765846661352,0.72,126.57,126.55,2.87892545]
[1765846661567,10.77859488,126.59,126.55,2.87892545]
[1765846661568,16.55966943,126.59,126.55,2.87892545]
[1765846661852,0.72,126.58,126.55,2.87892545]
[1765846662358,0.72,126.58,126.54,10.8814664]
[1765846662735,3.59892545,126.58,126.54,0.1]
[1765846663241,0.72,126.57,126.54,0.1]
[1765846663561,8.62097818,126.57,126.54,0.1]
[1765846663932,0.72,126.56,126.54,0.1]
[1765846664858,3.59892545,126.56,126.54,0.1]
[1765846665553,0.72,126.55,126.54,0.1]
[1765846667631,11.50094046,126.55,126.54,0.1]
[1765846668234,44.30306919,126.55,126.47,22.64560066]
[1765846668447,2.87892545,126.52,126.48,7.90622537]
[1765846668653,11.53892545,126.52,126.48,7.90622537]
[1765846668970,0.72,126.51,126.48,7.90622537]
[1765846669274,0.72,126.51,126.49,7.90574181]
[1765846669474,0.72,126.51,126.47,23.06560066]
[1765846669766,8.66,126.53,126.49,2.87892545]
[1765846670169,8.66,126.53,126.49,3.29892545]
[1765846670170,9.38,126.53,126.49,3.29892545]
[1765846670370,9.38,126.53,126.49,0.42]
[1765846670759,9.38,126.53,126.49,3.29892545]
[1765846670965,7.90162758,126.56,126.5,3.29892545]
[1765846671270,9.38,126.56,126.5,0.42]
[1765846671455,0.72,126.55,126.52,2.87892545]
[1765846671657,11.49991163,126.57,126.52,10.78281416]
[1765846671973,11.49991163,126.57,126.52,28.08361049]
[1765846671974,11.4997477,126.57,126.52,28.08361049]
[1765846672178,0.72,126.56,126.52,30.96253594]
[1765846673650,10.7797477,126.57,126.53,0.42]
[1765846673857,11.4997477,126.57,126.53,0.42]
[1765846674064,0.72,126.56,126.53,0.42]
[1765846674769,0.72,126.56,126.53,8.32296048]
[1765846674982,0.72,126.56,126.53,7.90296048]
[1765846675364,11.50046074,126.56,126.52,61.9]
[1765846675758,0.72,126.55,126.52,61.9]
[1765846676080,3.59892545,126.55,126.51,7.90425144]
[1765846676475,0.72,126.55,126.52,0.42]
[1765846676665,0.72,126.54,126.51,20.18068843]
[1765846676871,0.72,126.54,126.52,7.90388871]
[1765846677776,0.72,126.55,126.52,7.90388871]
[1765846678673,0.72,126.55,126.51,61.9]
[1765846678877,27.65923818,126.54,126.46,3.37249172]
[1765846679079,8.66,126.53,126.47,0.42]
[1765846679260,9.38,126.53,126.48,7.90622474]
[1765846679460,0.72,126.52,126.47,8.32676477]
[1765846679660,12.26370859,126.52,126.47,8.32676477]
[1765846679889,9.38,126.52,126.48,7.90632459]
[1765846680165,27.65923818,126.54,126.46,31.80097088]
[1765846680484,27.65923818,126.54,126.5,10.78884041]
[1765846680485,8.62263948,126.54,126.5,10.78884041]
[1765846680858,8.62263948,126.54,126.5,8.32513182]
[1765846681058,8.62263948,126.54,126.5,11.20884041]
[1765846681281,8.62263948,126.54,126.5,0.42]
[1765846681666,8.62263948,126.54,126.5,3.30370859]
[1765846681984,7.90263948,126.54,126.5,0.42]
[1765846682159,0.69,126.53,126.5,0.42]
[1765846682589,0.69,126.53,126.5,8.32479527]
[1765846682877,0.69,126.53,126.5,0.42]
[1765846683083,8.59328929,126.53,126.5,0.42]
[1765846684119,8.59263948,126.54,126.5,11.20874244]
[1765846684384,8.59263948,126.54,126.5,8.32502936]
[1765846685787,7.90263948,126.54,126.5,8.32502936]
[1765846685964,0.69,126.53,126.5,8.32502936]
[1765846686889,0.69,126.53,126.5,0.42]
[1765846686890,8.59340829,126.53,126.5,0.42]
[1765846687390,7.90263948,126.54,126.5,8.32501973]
[1765846687591,8.59263948,126.54,126.5,8.32501973]
[1765846687985,8.59334958,126.53,126.5,0.42]
[1765846688493,8.59334958,126.53,126.49,12.83222405]
[1765846688698,0.69,126.53,126.5,8.32500976]
[1765846689290,8.59334285,126.53,126.49,7.90558683]
[1765846689492,13.18675305,126.52,126.48,61.9]
[1765846689690,0.69,126.51,126.48,61.9]
[1765846690192,0.69,126.51,126.48,69.80633747]
[1765846691203,5.19675305,126.51,126.48,69.80633747]
[1765846691697,9.37,126.52,126.48,69.80633747]
[1765846691899,9.37,126.52,126.49,0.42]
[1765846692116,0.69,126.52,126.49,0.42]
[1765846692397,5.19675305,126.52,126.49,0.42]
[1765846693181,13.100651,126.52,126.48,89.99230837]
[1765846693986,13.100651,126.52,126.48,70.22633747]
[1765846694190,0.69,126.51,126.48,70.22633747]
[1765846694982,0.69,126.54,126.49,4.92675305]
[1765846695197,0.69,126.53,126.5,0.42]
[1765846695504,5.19675305,126.54,126.5,0.42]
[1765846695701,0.69,126.54,126.5,0.42]
[1765846696401,0.69,126.54,126.51,7.90451347]
[1765846697100,8.5927507,126.54,126.51,7.90451347]
[1765846697302,0.69,126.53,126.51,7.90451347]
[1765846698897,0.69,126.53,126.5,69.80496052]
[1765846698898,5.19675305,126.53,126.5,69.80496052]
[1765846699201,4.50675305,126.52,126.5,61.9]
[1765846699407,5.19675305,126.52,126.5,69.80503036]
[1765846699792,0.69,126.52,126.5,69.80503036]
[1765846700000,0.69,126.52,126.5,7.90503036]
[1765846703001,5.19675305,126.53,126.5,7.90503036]
[1765846703213,0.69,126.52,126.5,7.90503036]
[1765846703702,5.19675305,126.52,126.49,7.90552361]
[1765846704096,5.19675305,126.52,126.49,8.32552361]
[1765846704684,0.69,126.52,126.49,8.32552361]
[1765846706412,0.69,126.54,126.5,0.42]
[1765846707085,5.19675305,126.54,126.5,0.42]
[1765846707285,13.09955634,126.54,126.5,8.32462525]
[1765846707520,0.69,126.53,126.5,8.32462525]
[1765846709423,21.08904886,126.55,126.5,28.08747109]
[1765846709609,0.69,126.53,126.5,28.08747109]
[1765846710120,0.69,126.53,126.5,89.98747109]
[1765846712123,0.69,126.53,126.5,89.56747109]
[1765846712421,0.69,126.53,126.5,69.80462525]
[1765846713331,12.40954682,126.54,126.5,69.80462525]
[1765846713542,0.68,126.54,126.5,69.80462525]
[1765846713912,0.68,126.54,126.5,89.98747109]
[1765846714114,5.18675305,126.54,126.5,89.98747109]
[1765846714311,5.18675305,126.54,126.5,61.9]
[1765846714312,28.33973159,126.54,126.5,61.9]
[1765846714619,4.50675305,126.51,126.5,61.9]
[1765846714818,4.50675305,126.51,126.48,69.80582516]
[1765846715020,4.50675305,126.51,126.48,70.22582516]
[1765846715021,5.18675305,126.51,126.48,70.22582516]
[1765846715329,5.18675305,126.51,126.49,7.90574601]
[1765846716242,0.68,126.51,126.49,7.90574601]
[1765846716618,13.09075237,126.52,126.49,7.90574601]
[1765846717022,0.68,126.51,126.49,7.90574601]
[1765846717541,0.68,126.51,126.48,69.80614061]
[1765846717703,4.50675305,126.52,126.48,69.80614061]
[1765846717901,5.18675305,126.52,126.49,0.42]
[1765846719143,13.08939253,126.54,126.49,0.42]
[1765846719336,17.26263948,126.54,126.49,62.32]
[1765846719534,21.76939253,126.54,126.49,66.82675305]
[1765846719739,4.50675305,126.57,126.52,7.90388871]
[1765846720034,4.50675305,126.57,126.52,8.32388871]
[1765846720035,8.58139064,126.56,126.52,8.32388871]
[1765846720424,0.68,126.55,126.52,8.32388871]
[1765846722653,8.58206991,126.55,126.52,8.32388871]
[1765846722952,8.58206991,126.55,126.52,7.90388871]
[1765846723158,12.40882296,126.55,126.52,7.90388871]
[1765846723326,0.68,126.54,126.52,7.90388871]
[1765846723650,0.68,126.55,126.52,8.32388871]
[1765846725145,13.0883999,126.56,126.53,0.42]
[1765846725446,13.0883999,126.56,126.52,7.90388871]
[1765846725647,0.68,126.55,126.52,8.32388871]
[1765846727850,0.68,126.55,126.52,70.22388871]
[1765846729529,21.7270912,126.59,126.55,7.90201501]
[1765846729530,8.57951812,126.59,126.55,7.90201501]
[1765846729850,9.36,126.61,126.56,4.92675305]
[1765846730052,8.68,126.61,126.56,9.08]
[1765846730350,4.50675305,126.57,126.54,7.90230958]
[1765846730850,5.18675305,126.57,126.54,7.90230958]
[1765846731258,4.50675305,126.56,126.54,7.90230958]
[1765846732845,5.18675305,126.56,126.54,7.90230958]
[1765846733257,4.50675305,126.56,126.54,7.90230958]
[1765846733566,8.58078545,126.57,126.54,7.90230958]
[1765846733567,13.0875385,126.57,126.54,7.90230958]
[1765846734765,0.68,126.56,126.54,7.90230958]
[1765846734963,5.18675305,126.56,126.54,7.90230958]
[1765846735740,5.18675305,126.56,126.53,16.56300814]
[1765846736157,5.18675305,126.56,126.53,16.98300814]
[1765846736354,7.90054046,126.58,126.53,98.22116826]
[1765846736641,5.18675305,126.58,126.54,0.42]
[1765846736852,0.68,126.57,126.54,0.42]
[1765846737048,0.68,126.57,126.55,7.90201501]
[1765846739348,12.40658245,126.59,126.55,7.90201501]
[1765846739550,0.68,126.58,126.55,69.80201501]
[1765846739860,0.68,126.58,126.55,70.22201501]
[1765846740262,12.40658245,126.59,126.55,70.22201501]
[1765846740446,0.68,126.58,126.55,70.22201501]
[1765846740655,0.68,126.58,126.55,69.80201501]
[1765846741369,0.68,126.58,126.55,70.22201501]
[1765846741973,13.08711695,126.58,126.55,61.9]
[1765846742350,0.72,126.57,126.55,61.9]
[1765846742676,5.22675305,126.57,126.55,61.9]
[1765846743050,0.72,126.56,126.55,61.9]
[1765846745078,12.40770586,126.57,126.55,61.9]
[1765846745273,13.12574345,126.57,126.55,61.9]
[1765846745579,13.12574345,126.57,126.54,69.80237646]
[1765846746465,8.62095281,126.57,126.54,69.80237646]
[1765846747168,0.72,126.56,126.54,61.9]
[1765846747485,12.40574345,126.57,126.54,69.80250196]
[1765846747486,8.62095281,126.57,126.54,69.80250196]
[1765846747971,0.72,126.57,126.54,70.22250196]
[1765846749584,2.88280367,126.56,126.51,7.90421589]
[1765846749880,8.66,126.55,126.49,8.32546623]
[1765846750067,2.88280367,126.53,126.49,8.32546623]
[1765846750266,2.88280367,126.53,126.49,7.90546623]
[1765846750469,3.60280367,126.52,126.48,8.32607484]
[1765846750874,0.72,126.51,126.48,8.32607484]
[1765846751981,10.78683794,126.52,126.48,8.32607484]
[1765846752179,0.72,126.51,126.48,8.32607484]
[1765846752575,10.78683794,126.52,126.48,8.32607484]
[1765846752781,11.50683794,126.52,126.48,8.32607484]
[1765846753083,7.90403427,126.52,126.48,7.90607484]
[1765846753283,8.62403427,126.52,126.49,8.3255127]
[1765846753684,8.62403427,126.52,126.49,7.9055127]
[1765846754066,10.78683794,126.52,126.49,7.9055127]
[1765846754384,10.78683794,126.52,126.48,7.90609537]
[1765846754385,0.72,126.51,126.48,7.90609537]
[1765846754587,0.72,126.51,126.48,8.32609537]
[1765846754768,0.72,126.51,126.49,7.90565346]
[1765846757390,3.60280367,126.52,126.49,8.32565346]
[1765846757572,3.60280367,126.52,126.49,7.90565346]
[1765846757573,0.72,126.52,126.49,7.90565346]
[1765846758776,12.28280367,126.54,126.5,0.42]
[1765846758968,0.72,126.53,126.5,0.42]
[1765846760189,3.60280367,126.53,126.5,61.9]
[1765846760366,2.88280367,126.52,126.5,61.9]
[1765846760566,3.60280367,126.52,126.5,61.9]
[1765846761493,2.88280367,126.52,126.5,61.9]
[1765846761674,12.28280367,126.51,126.46,3.37249172]
[1765846761874,2.88280367,126.49,126.46,3.37249172]
[1765846762296,2.88280367,126.47,126.46,3.37249172]
[1765846762676,0.72,126.47,126.46,3.37249172]
[1765846763291,3.60280367,126.48,126.46,3.37249172]
[1765846763593,3.60280367,126.47,126.46,3.37249172]
[1765846763789,0.72,126.47,126.46,3.37249172]
[1765846764101,3.60280367,126.47,126.46,3.37249172]
[1765846764681,11.50981719,126.47,126.46,3.37249172]
[1765846765395,28.44440825,126.49,126.46,3.37249172]
[1765846765396,19.46946167,126.48,126.46,3.37249172]
[1765846765591,3.60280367,126.48,126.46,3.37249172]
[1765846765969,2.88280367,126.49,126.46,11.28010604]
[1765846766169,3.60280367,126.49,126.46,11.70010604]
[1765846766369,7.9051993,126.5,126.46,11.70010604]
[1765846766576,20.18800297,126.5,126.46,11.70010604]
[1765846766798,8.62582784,126.49,126.46,3.37249172]
[1765846767002,11.50863151,126.49,126.46,3.37249172]
[1765846767186,11.50863151,126.49,126.46,11.2801126]
[1765846767983,0.72,126.48,126.46,3.37249172]
[1765846768186,2.88280367,126.47,126.46,3.37249172]
[1765846768597,3.60280367,126.47,126.46,3.37249172]
[1765846769180,8.62701352,126.47,126.46,1.52249172]
[1765846769388,17.30701352,126.47,126.46,1.52249172]
[1765846769580,11.50981719,126.47,126.46,1.52249172]
[1765846769791,19.46981719,126.47,126.46,1.52249172]
[1765846769987,20.09981719,126.47,126.46,1.52249172]
[1765846770304,17.21701352,126.47,126.46,1.52249172]
[1765846770479,20.09981719,126.47,126.46,1.52249172]
[1765846770998,17.21701352,126.47,126.46,1.52249172]
[1765846771203,16.58701352,126.47,126.46,1.52249172]
[1765846771502,20.09981719,126.47,126.46,1.52249172]
[1765846771800,20.09981719,126.47,126.43,0.1]
[1765846771801,79.40241859,126.47,126.43,0.1]
[1765846772001,79.40241859,126.47,126.41,0.1]
[1765846772002,18.81269854,126.44,126.41,0.1]
[1765846772210,2.88280367,126.42,126.41,0.1]
[1765846772497,2.88280367,126.42,126.37,0.72]
[1765846772498,2.88280367,126.42,126.37,8.23321729]
[1765846772699,8.68,126.42,126.37,2.88280367]
[1765846772899,21.61058246,126.45,126.38,2.88280367]
[1765846773073,36.35454732,126.47,126.41,7.91076655]
[1765846773277,2.88280367,126.46,126.41,7.91076655]
[1765846773971,2.88280367,126.45,126.41,7.91076655]
[1765846774391,2.88280367,126.45,126.42,0.72]
[1765846775394,2.88280367,126.44,126.42,0.72]
[1765846775583,2.88280367,126.45,126.42,0.72]
[1765846776396,7.90763877,126.46,126.42,8.6297126]
[1765846776905,2.88280367,126.45,126.42,0.72]
[1765846777415,15.92989487,126.43,126.38,0.72]
[1765846777585,15.92989487,126.43,126.36,7.91345598]
[1765846777586,2.88280367,126.39,126.35,0.72]
[1765846777778,2.88280367,126.39,126.37,7.91318112]
[1765846778090,2.88280367,126.4,126.37,7.91318112]
[1765846778483,2.88280367,126.4,126.37,8.63318112]
[1765846778682,2.88280367,126.39,126.37,0.72]
[1765846779104,2.88280367,126.39,126.37,8.63322176]
[1765846779489,7.74418287,126.39,126.37,8.63322176]
[1765846779694,7.74418287,126.4,126.37,8.63322176]
[1765846779893,16.59041293,126.42,126.38,0.72]
[1765846780206,7.74418287,126.41,126.38,0.72]
[1765846780406,7.91041293,126.42,126.38,0.72]
[1765846780702,15.6545958,126.42,126.38,0.72]
[1765846781403,37.38102792,126.43,126.38,16.37638177]
[1765846781606,37.38102792,126.43,126.38,8.6321989]
[1765846781607,7.74418287,126.42,126.38,8.6321989]
[1765846782413,0.65,126.41,126.37,61.9]
[1765846782591,8.68,126.4,126.37,61.9]
[1765846782792,16.42418287,126.4,126.37,69.81311589]
[1765846783107,16.42418287,126.42,126.38,0.72]
[1765846783285,24.33433268,126.42,126.38,0.72]
[1765846783485,15.65433268,126.42,126.38,0.72]
[1765846783688,7.91014981,126.42,126.38,8.46418287]
[1765846784094,7.91014981,126.42,126.38,0.72]
[1765846784095,15.65433268,126.42,126.38,0.72]
[1765846784283,8.39418287,126.41,126.37,61.9]
[1765846784511,7.74418287,126.41,126.37,61.9]
[1765846786099,8.68,126.4,126.37,61.9]
[1765846786312,7.91201835,126.39,126.37,61.9]
[1765846786609,7.91201835,126.39,126.36,15.65803612]